Cogmind - Beta 17 @@@ ROGUE MODE // 2026.07.27 @ 15:32:17 Player: Akl Result: Destroyed by Y-64 Sentinel with KE Penetrator Performance ------------- Evolutions (4) 2000 Regions Visited (7) 1400 Robots Destroyed (23) 115 Value Destroyed (706) 706 Prototype IDs (11) 220 Alien Tech Used (0) 0 Bonus (0) 0 TOTAL SCORE: 4441 Bonus ------- None Cogmind --------- Core Integrity 0/850 Matter 105/300 Energy 99/100 System Corruption 0% Temperature Cool (9) Movement Core (50) Location -6/Lower Caves Parts ------- > --- POWER (1) -------- (None) > --- PROPULSION (4) --- (None) > --- UTILITY (7) ------ Improved Signal Interpreter Advanced Terrain Scan Processor Improved Salvage Targeting Computer Advanced Targeting Computer > --- WEAPON (3) ------- (None) > --- INVENTORY (5) ---- Micro Nuclear Core Improved Targeting Computer Core Analyzer Peak State ------------ > --- POWER ------------ Micro Nuclear Core > --- PROPULSION ------- Gravmag System Flight Unit Xenon Bombardment Thruster Xenon Bombardment Thruster > --- UTILITY ---------- Improved Signal Interpreter Advanced Terrain Scanner Improved Terrain Scan Processor Improved Salvage Targeting Computer Improved Targeting Computer Advanced Targeting Computer Transmission Jammer > --- WEAPON ----------- Light Assault Rifle Flak Gun Heavy Machine Gun > --- INVENTORY -------- Flight Unit Improved Trap Scanner Terrain Scanner Improved Targeting Computer Core Analyzer [Rating: 52] Favorites ----------- Power Light Ion Engine Engine Light Ion Engine Power Core Light Nuclear Core Propulsion Xenon Bombardment Thruster Leg Carbon-fiber Leg Wheel Wheel Hover Unit Gravmag System Flight Unit Xenon Bombardment Thruster Utility Improved Targeting Computer Device Terrain Scanner Processor Improved Targeting Computer Hackware Hacking Suite Weapon Light Assault Rifle Energy Gun Medium Laser Ballistic Gun Light Assault Rifle Special Weapon Remote Datajack Build | -11 -10 -9 -9 -8 -7 -6 -6 ------- Run | Yrd Mat Mat Min Mat Fac Fac Low Slots Evolved 8 | . . 2 . 2 2 2 . Power . | . . . . . . . . Propulsion 2 | . . 2 . . . . . Utility 5 | . . . . 2 1 2 . Weapon 1 | . . . . . 1 . . Parts Attached 63 | 4 2 8 14 9 10 16 . Power 8 | . . 1 2 1 2 2 . Engine 4 | . . 1 2 1 . . . Core 4 | . . . . . 2 2 . Reactor . | . . . . . . . . Propulsion 24 | 2 . 5 6 3 3 5 . Treads . | . . . . . . . . Leg 6 | 1 . 2 1 . . 2 . Wheel 5 | 1 . 3 1 . . . . Hover 3 | . . . . . 1 2 . Flight 10 | . . . 4 3 2 1 . Utility 15 | . . 2 1 3 3 6 . Device 7 | . . 2 . 1 . 4 . Storage . | . . . . . . . . Processor 7 | . . . 1 2 2 2 . Hackware 1 | . . . . . 1 . . Protection . | . . . . . . . . Artifact . | . . . . . . . . Weapon 16 | 2 2 . 5 2 2 3 . Energy Gun 2 | 1 . . . . . 1 . Energy Cannon . | . . . . . . . . Ballistic Gun 11 | 1 1 . 5 1 1 2 . Ballistic Cannon . | . . . . . . . . Launcher . | . . . . . . . . Special Weapon 3 | . 1 . . 1 1 . . Impact Weapon . | . . . . . . . . Slashing Weapon . | . . . . . . . . Piercing Weapon . | . . . . . . . . Special Melee Weapon . | . . . . . . . . Unidentified Prototypes 1 | . . . . 1 . . . Parts Lost 27 | . . 6 . 4 4 13 . Power 1 | . . . . . 1 . . Propulsion 14 | . . 4 . 2 2 6 . Utility 7 | . . 1 . 1 . 5 . Weapon 5 | . . 1 . 1 1 2 . Highest Loss Streak 8 | . . 4 . 2 2 8 . To Critical Strikes . | . . . . . . . . Average Backups 3 | . 2 3 4 4 2 4 3 Power . | . . . . . . . 1 Propulsion . | . 1 . . . . . . Utility 2 | . . . 2 2 2 3 2 Weapon . | . . 1 2 2 . . . Tool/Special . | . . . . . . . . Unused Backups 9 | . . 1 3 1 . 1 3 Power 2 | . . . 1 . . . 1 Propulsion . | . . . . . . . . Utility 5 | . . . 1 1 . 1 2 Weapon 1 | . . . 1 . . . . Tool/Special 1 | . . 1 . . . . . Average Slot Usage (%) 87 | . 55 82 97 92 98 77 26 Engine 4 | . . 4 11 9 6 . . Core 1 | . . . . . . 4 . Leg 5 | . 14 21 . 9 4 . . Wheel 2 | . 14 20 21 . . . . Flight 18 | . . . 20 22 23 16 . Device 9 | . . 14 11 11 6 11 . Processor 24 | . . . 11 21 29 31 26 Ballistic Gun 15 | . 23 19 21 17 19 9 . Special Weapon 1 | . 3 1 . . 2 . . Peak Build Rating 52 | 4 4 10 13 28 39 52 15 Average Rating 27 | 3 3 8 10 17 34 39 15 On Entrance 12 | . 4 4 6 13 27 31 15 Avg Prop Armor Cover (%) 9 | 9 10 14 10 8 6 4 . Naked Turns . | . . . . . . . . Heaviest Build 18 | 3 3 11 9 11 14 18 . Greatest Support 30 | 10 10 20 20 18 24 30 3 Greatest Overweight (x) 2 | . . 1 2 . . 2 . Average Overweight (x) . | . . . . . . . . Largest Inventory Capacity 5 | 5 5 5 5 5 5 5 5 Average Capacity 5 | 5 5 5 5 5 5 5 5 Most Carried 5 | 1 5 5 5 5 5 5 3 Average Carried 3 | . 2 3 4 4 2 4 3 Final Capacity 5 | 5 5 5 5 5 5 5 5 Final Carried 5 | 1 5 4 5 5 5 3 3 Class Distribution -------------------- 35% | Mutant 32% | Scavenger-Mutant 24% | Scavenger-Gunner 3% | Scientist-Mutant 3% | Sprinter Dominant Class ---------------- Mutant | -10/Materials Scientist-Mutant | -9/Materials Scavenger-Mutant | -9/Mines Scavenger-Mutant | -8/Materials Scavenger-Gunner | -7/Factory Mutant | -6/Factory Mutant | -6/Lower Caves Resources | -11 -10 -9 -9 -8 -7 -6 -6 ----------- Run | Yrd Mat Mat Min Mat Fac Fac Low Matter Collected 1141 | 247 28 206 218 176 100 166 . Remotely . | . . . . . . . . Salvage Created 842 | 73 18 206 95 184 100 166 . Parts 59 | 1 1 12 13 15 5 12 . Haulers Intercepted . | . . . . . . . . Recyclers Shooed . | . . . . . . . . Parts Field Recycled . | . . . . . . . . Retrieved Matter . | . . . . . . . . Parts Self-Destructed . | . . . . . . . . Prevented . | . . . . . . . . Parts Restored . | . . . . . . . . Kills | -11 -10 -9 -9 -8 -7 -6 -6 ------- Run | Yrd Mat Mat Min Mat Fac Fac Low Combat Hostiles Destroyed 19 | . . 5 3 6 2 3 . Guns 19 | . . 5 3 6 2 3 . Classes Destroyed 7 | 1 1 2 2 . 1 . . Builder 1 | . . . 1 . . . . Tunneler 2 | . 1 . 1 . . . . Recycler 1 | 1 . . . . . . . Swarmer 6 | . . . 3 3 . . . Grunt 6 | . . 3 . 2 . 1 . Sentry 3 | . . 2 . 1 . . . Programmer 4 | . . . . . 2 2 . Best Kill Streak 3 | 1 1 1 2 3 1 1 . Combat Bots Only 3 | . . 1 2 3 1 1 . Max Kills in Single Turn 2 | 1 1 1 1 2 1 1 . Gunslinging 1 | . . . . 1 . . . Exploded . | . . . . . . . . Melee . | . . . . . . . . Uniques/NPCs Destroyed . | . . . . . . . . Combat | -11 -10 -9 -9 -8 -7 -6 -6 -------- Run | Yrd Mat Mat Min Mat Fac Fac Low Hostile Shots Fired 333 | . . 71 23 51 42 129 17 Missed 126 | . . 11 12 19 22 58 4 Hits 207 | . . 60 11 32 20 71 13 Melee 11 | . . 6 . . . 5 . Projectile 196 | . . 54 11 32 20 66 13 AOE 1 | . . . . . . 1 . Critical Strikes 10 | . . 2 . 1 3 3 1 Part Disruptions 1 | . . . . . . 1 . Damage Taken 2988 | . . 725 78 386 294 1256 249 Core 1166 | . . 182 5 66 44 620 249 Absorbed by Shields 171 | . . 124 30 17 . . . Core Remaining (%) 86 | 100 100 . 53 88 93 . . Volleys Fired 123 | 7 3 39 18 27 7 22 . Largest 3 | 2 2 2 2 2 3 2 . Hottest 100 | 70 100 100 40 100 63 55 . Shots Fired 233 | 14 5 71 36 45 21 41 . Gun 217 | 14 4 65 36 36 21 41 . Cannon . | . . . . . . . . Launcher . | . . . . . . . . Special 16 | . 1 6 . 9 . . . Kinetic 207 | 7 4 65 36 36 21 38 . Thermal 23 | 7 1 6 . 9 . . . Explosive . | . . . . . . . . Electromagnetic 3 | . . . . . . 3 . Robot Hit Streak 21 | 4 5 17 6 15 16 21 . Robot Miss Streak 3 | 3 . 2 3 1 1 1 . Penetration Max . | . . . . . . . . Secondary Targets 3 | . . 1 1 1 . . . Max Gunslinging Chain 1 | . . 1 1 1 . . . Shots Hit Robots 172 | 9 3 51 27 30 17 35 . Core Hits 57 | 2 1 12 10 16 5 11 . Critical Kills . | . . . . . . . . Critical Parts Destroyed . | . . . . . . . . Critical Strikes . | . . . . . . . . Melee Attacks . | . . . . . . . . Impact . | . . . . . . . . Slashing . | . . . . . . . . Piercing . | . . . . . . . . Sneak Attacks . | . . . . . . . . Combat Hostiles . | . . . . . . . . Follow-up Attacks . | . . . . . . . . Damage Inflicted 1983 | 86 31 552 213 314 216 571 . Guns 1923 | 86 31 522 213 290 216 565 . Cannons . | . . . . . . . . Explosions . | . . . . . . . . Melee . | . . . . . . . . Ramming 12 | . . 6 . . . 6 . Kinetic 1840 | 35 31 522 213 290 216 533 . Thermal 99 | 51 . 24 . 24 . . . Explosive . | . . . . . . . . Electromagnetic 32 | . . . . . . 32 . Impact . | . . . . . . . . Slashing . | . . . . . . . . Piercing . | . . . . . . . . Highest Corruption 10 | . . 10 10 . 5 . . Average Corruption 4 | . . 9 10 . 2 . . Corruption Purged . | . . . . . . . . Corruption Blocked . | . . . . . . . . Effects 33 | . . 1 19 . 13 . . Message Errors 9 | . . . 5 . 4 . . Matter Fused 5 | . . . 3 . 2 . . Heat Flow Errors 4 | . . . 3 . 1 . . Energy Discharges 6 | . . . 4 . 2 . . Parts Rejected 2 | . . 1 1 . . . . Parts Fused 1 | . . . . . 1 . . Data Loss (minor) 3 | . . . 2 . 1 . . Misfires 2 | . . . . . 2 . . Misdirections 1 | . . . 1 . . . . Overload Shots . | . . . . . . . . Overflow Damage . | . . . . . . . . Projectiles . | . . . . . . . . Explosions . | . . . . . . . . Melee . | . . . . . . . . Knockbacks . | . . . . . . . . Impact . | . . . . . . . . Kinetic . | . . . . . . . . Secondary . | . . . . . . . . Self-Inflicted Damage 2 | . . 2 . . . . . Shots . | . . . . . . . . Rammed 4 | . . 3 . . . 1 . Targets Rammed 8 | . . 3 . . . 5 . Kicked 4 | . . . . . . 4 . Crushed . | . . . . . . . . Highest Temperature 229 | 40 . 19 229 113 196 17 . Average Temperature 36 | 19 . 7 91 29 47 6 . Received Heat Transfer 886 | . . 280 6 159 . 351 90 Siege Activations . | . . . . . . . . Martial Activations . | . . . . . . . . Shielding Activations . | . . . . . . . . Robots Disrupted . | . . . . . . . . Combat Hostiles . | . . . . . . . . Robots Corrupted . | . . . . . . . . Combat Hostiles . | . . . . . . . . Parts Fried . | . . . . . . . . Impact Corruptions . | . . . . . . . . Robots Melted . | . . . . . . . . Combat Hostiles . | . . . . . . . . Parts Melted . | . . . . . . . . Heat Transferred 248 | 148 . 50 . 50 . . . Parts Sabotaged . | . . . . . . . . Parts Stolen . | . . . . . . . . Parts Stripped . | . . . . . . . . Power Chain Reactions . | . . . . . . . . Alert | -11 -10 -9 -9 -8 -7 -6 -6 ------- Run | Yrd Mat Mat Min Mat Fac Fac Low Maximum Alert Level 1 | . . . . . . 1 . Low Security (%) 98 | 100 100 100 100 100 100 94 . Level 1 1 | . . . . . . 5 . Level 2 . | . . . . . . . . Level 3 . | . . . . . . . . Level 4 . | . . . . . . . . Level 5 . | . . . . . . . . High Security . | . . . . . . . . Max Security . | . . . . . . . . Peak Influence 266 | 5 10 43 50 73 153 266 . Initial 67 | . . . . . 6 67 . Average 20 | . . 11 7 11 6 47 . Influence Increases 1416 | 5 16 183 110 211 273 603 15 Destroy 0b10 Robot/C 380 | . . 100 60 120 40 60 . Destroy 0b10 Robot/NC 20 | 5 5 . 10 . . . . Destroy Leader 110 | . . 30 10 30 20 20 . Successful Hack 157 | . 10 33 . 8 63 43 . Destroy Structure 14 | . 1 5 . 8 . . . Partial Spotted 120 | . . . 15 45 30 30 . Lose Combat Pursuer 615 | . . 15 15 . 120 450 15 Influence Decreases 1380 | 5 16 183 110 196 149 629 92 Entered New Map 123 | . . . . . 9 72 42 Time Decay 974 | 5 16 146 110 179 104 364 50 Search Patrol Dispatched 100 | . . . . . . 100 . Lost Part 183 | . . 37 . 17 36 93 . Squads Dispatched 22 | . 1 2 . 1 8 10 . Investigation 7 | . . 2 . 1 3 1 . Extermination 7 | . . . . . 3 4 . Reinforcement 8 | . 1 . . . 2 5 . Assault . | . . . . . . . . Garrison . | . . . . . . . . Intercept . | . . . . . . . . Searches Triggered 1 | . . . . . . 1 . Construction Impeded . | . . . . . . . . Haulers Reinforced . | . . . . . . . . Active Scanning Responses . | . . . . . . . . Cargo Convoy Interrupts 1 | . . . . . . 1 . Stealth | -11 -10 -9 -9 -8 -7 -6 -6 --------- Run | Yrd Mat Mat Min Mat Fac Fac Low Distress Signals 4 | . . 3 . . 1 . . Communications Jammed 18 | . . . . . . 18 . Distress Signals 18 | . . . . . . 18 . Times Spotted 96 | . 1 16 7 15 16 35 6 Peak Tracking Total 15 | . 1 7 3 5 11 15 6 Tactical Retreats 13 | . . 1 1 . 2 8 1 Traps | -11 -10 -9 -9 -8 -7 -6 -6 ------- Run | Yrd Mat Mat Min Mat Fac Fac Low Traps Triggered 2 | . . . . . . 2 . Indirectly . | . . . . . . . . Trap Hack Attempts . | . . . . . . . . Triggered . | . . . . . . . . Disarmed . | . . . . . . . . Reprogrammed . | . . . . . . . . Reused . | . . . . . . . . Traps Extracted . | . . . . . . . . Installed . | . . . . . . . . Triggered . | . . . . . . . . Machines | -11 -10 -9 -9 -8 -7 -6 -6 ---------- Run | Yrd Mat Mat Min Mat Fac Fac Low Machines Disabled . | . . . . . . . . Max in Single Turn . | . . . . . . . . Machines Repaired . | . . . . . . . . Machines Dismantled . | . . . . . . . . Machines Sabotaged . | . . . . . . . . Overloaded Fab Kills . | . . . . . . . . Hacking | -11 -10 -9 -9 -8 -7 -6 -6 --------- Run | Yrd Mat Mat Min Mat Fac Fac Low Machines Accessed 28 | . 1 7 1 5 8 6 . Terminals 22 | . 1 6 . 4 6 5 . Fabricators 1 | . . . . . 1 . . Repair Stations . | . . . . . . . . Recycling Units 1 | . . . . . . 1 . Scanalyzers 3 | . . 1 . 1 1 . . Garrison Access . | . . . . . . . . Total Hacks 111 | . 3 39 1 21 29 18 . Successful 71 | . 3 28 1 13 18 8 . Failed 39 | . . 10 . 8 11 10 . Catastrophic 3 | . . 1 . 1 1 . . Database Lockouts 1 | . . 1 . . . . . Manual 39 | . 1 13 . 8 9 8 . Terminals 73 | . 3 24 . 12 18 16 . Fabricators 3 | . . . . . 3 . . Repair Stations . | . . . . . . . . Recycling Units 2 | . . . . . . 2 . Scanalyzers 32 | . . 15 . 9 8 . . Garrison Access . | . . . . . . . . Terminal Hacks 26 | . 2 10 1 3 6 4 . Prototype ID Bank 7 | . 1 4 . . 2 . . Open Door 1 | . . . 1 . . . . Level Access Points 1 | . . . . . 1 . . Branch Access Points 1 | . . . . 1 . . . Emergency Access Points 1 | . . . . . . 1 . Alert Level 2 | . . . . . 1 1 . Locate Traps 5 | . . 1 . 2 2 . . Recall Reinforcements 2 | . . 1 . . . 1 . Zone Layout 6 | . 1 4 . . . 1 . Fabricator Hacks 2 | . . . . . 2 . . Load Schematic 1 | . . . . . 1 . . Build 1 | . . . . . 1 . . Repair Station Hacks . | . . . . . . . . Recycling Unit Hacks . | . . . . . . . . Scanalyzer 26 | . . 13 . 7 6 . . Insert Component 10 | . . 4 . 3 3 . . Analyze 10 | . . 4 . 3 3 . . Retrieve Study 6 | . . 5 . 1 . . . Garrison Access Hacks . | . . . . . . . . Unauthorized Hacks 17 | . 1 5 . 3 4 4 . Terminals 16 | . 1 5 . 3 4 3 . Assimilate 2 | . . 2 . . . . . Botnet 14 | . 1 3 . 3 4 3 . Fabricators . | . . . . . . . . Repair Stations . | . . . . . . . . Recycling Units 1 | . . . . . . 1 . Reject 1 | . . . . . . 1 . Scanalyzers . | . . . . . . . . Garrison Access . | . . . . . . . . Data Cores Recovered . | . . . . . . . . Used . | . . . . . . . . Hacking Detections 26 | . 1 6 . 5 8 6 . Full Trace Events 7 | . . 2 . 1 3 1 . Feedback Events . | . . . . . . . . Feedback Blocked . | . . . . . . . . Robot Schematics Acquired . | . . . . . . . . Robots Built . | . . . . . . . . Authchips . | . . . . . . . . Time . | . . . . . . . . Total Robot Build Rating . | . . . . . . . . Part Schematics Acquired 9 | . . 4 . 3 2 . . Parts Built 2 | . . . . . 2 . . Authchips . | . . . . . . . . Time 17 | . . . . . 17 . . Total Part Build Rating 2 | . . . . . 2 . . Part Studies Acquired 6 | . . 5 . 1 . . . Parts Repaired . | . . . . . . . . Time . | . . . . . . . . Parts Recycled . | . . . . . . . . Recycled Matter . | . . . . . . . . Retrieved Matter . | . . . . . . . . Retrieved Components . | . . . . . . . . Parts Scanalyzed 10 | . . 4 . 3 3 . . Part Schematics Acquired 9 | . . 4 . 3 2 . . Parts Damaged 2 | . . 1 . . 1 . . Bothacking | -11 -10 -9 -9 -8 -7 -6 -6 ------------ Run | Yrd Mat Mat Min Mat Fac Fac Low Used RIF Installer . | . . . . . . . . Robots Hacked . | . . . . . . . . Non-combat . | . . . . . . . . Combat . | . . . . . . . . Robot Hacks Applied . | . . . . . . . . Relay Couplers Released . | . . . . . . . . Fabnet Peak Effective % . | . . . . . . . . Robots Rewired . | . . . . . . . . Allies Hacked . | . . . . . . . . Hacks Repelled . | . . . . . . . . Allies | -11 -10 -9 -9 -8 -7 -6 -6 -------- Run | Yrd Mat Mat Min Mat Fac Fac Low Total Allies . | . . . . . . . . Largest Group . | . . . . . . . . Highest-Rated Group . | . . . . . . . . Highest-Rated Ally . | . . . . . . . . Total Orders . | . . . . . . . . Ally Attacks . | . . . . . . . . Total Damage . | . . . . . . . . Kills . | . . . . . . . . Allies Corrupted . | . . . . . . . . Allies Melted . | . . . . . . . . Intel | -11 -10 -9 -9 -8 -7 -6 -6 ------- Run | Yrd Mat Mat Min Mat Fac Fac Low Active Infowar (turns) 7012 | . . 415 . 1977 2277 2343 . Sensors 453 | . . . . . . 453 . Terrain 6504 | . . 415 . 1977 2277 1835 . Traps 23 | . . . . . . 23 . Jamming 1375 | . . . . . . 1375 . Robot Analysis Total . | . . . . . . . . Derelict Logs Recovered 1 | . . . 1 . . . . Drone Launches . | . . . . . . . . Drone Recoveries . | . . . . . . . . Exploration | -11 -10 -9 -9 -8 -7 -6 -6 ------------- Run | Yrd Mat Mat Min Mat Fac Fac Low Turns Passed 7852 | 60 137 462 447 1977 2285 2380 104 Spaces Moved 3580 | 33 148 322 661 443 755 1015 203 Core 415 | 3 . . . . . 209 203 Treads . | . . . . . . . . Legs 60 | 20 . . . . . 40 . Wheels 488 | 10 148 322 8 . . . . Hover 4 | . . . . . . 4 . Flight 2613 | . . . 653 443 755 762 . Fastest Speed 31 | 50 80 70 44 44 31 31 50 Average Speed 48 | 101 80 73 48 45 36 44 50 Slowest Speed 210 | 120 80 85 210 47 44 200 50 Overloaded Moves . | . . . . . . . . Propulsion Burnouts . | . . . . . . . . Robots Hopped 19 | . . . 2 8 3 6 . Potential Cave-ins . | . . . . . . . . Cave-ins Triggered . | . . . . . . . . Exploration Rate (%) 32 | 3 26 32 89 35 21 26 24 Regions Visited 7 Branch Regions 2 Pre-discovered Areas 1 | . . . 1 . . . . Known Exits Taken 2 | . . . . . 1 1 . Unknown Exits Taken 5 | 1 1 1 1 1 . . . Scrap Searched 2 | . . . 2 . . . . Spaces Dug 14 | . 1 5 . 8 . . . Terrain Destroyed 14 | . 1 5 . 8 . . . Melee . | . . . . . . . . Projectile 14 | . 1 5 . 8 . . . AOE . | . . . . . . . . Terrain Rammed . | . . . . . . . . Walls Destroyed . | . . . . . . . . Machines Disabled . | . . . . . . . . Actions | -11 -10 -9 -9 -8 -7 -6 -6 --------- Run | Yrd Mat Mat Min Mat Fac Fac Low Total 9442 | 44 159 469 759 2152 2753 2901 205 Wait 5584 | . . 81 47 1660 1962 1832 2 Move 3536 | 32 147 321 656 426 748 1003 203 Hop 19 | . . . 2 8 3 6 . Pick Up 40 | 1 5 7 6 7 10 4 . Fast Attach 29 | 4 . 3 5 2 2 13 . Attach 29 | . 1 7 2 6 9 4 . Detach 4 | . . 2 . 1 1 . . Swap 30 | . 2 3 9 8 3 5 . Drop 41 | . 1 3 14 7 8 8 . Fire 123 | 7 3 39 18 27 7 22 . Melee . | . . . . . . . . Ram 3 | . . 3 . . . . . Kick 4 | . . . . . . 4 . Crush . | . . . . . . . . Escape Stasis . | . . . . . . . . Rewire . | . . . . . . . . Trap . | . . . . . . . . Miscellaneous . | . . . . . . . . Route ------- -11/Scrapyard -10/Materials -9/Materials -9/Mines (discovered 3 exits: *Mat x2 / [*Exi]) -8/Materials -7/Factory (discovered 4 exits: *Fac x4) -6/Factory (discovered 2 exits: *Low / [Ext]) -6/Lower Caves History --------- Turn | Location | Event 15 | -11/Scrapyard | Discovered new exit (range 15) 61 | -11/Scrapyard | Entered Materials 156 | -10/Materials | Discovered new exit (range 6) 198 | -10/Materials | Entered another Materials area 198 | -9/Materials | Evolved 2 slots: Propulsion x2 307 | -9/Materials | Build established: Mutant 336 | -9/Materials | Central database locked down 516 | -9/Materials | Discovered new exit (range 18) 649 | -9/Materials | System corruption reached 10% 660 | -9/Materials | Entered Mines 667 | -9/Mines | Met a Derelict who couldn't figure out how to use a Trap Extractor 678 | -9/Mines | Lost 4 parts (2n1u1w) 726 | -9/Mines | Learned location of Storage (-7) 729 | -9/Mines | Joined a pair of Derelicts in attacking an 0b10 outpost 927 | -9/Mines | Deemed a non-threat by the Exiles lab entrance 927 | -9/Mines | Discovered new exit (range 5) 958 | -9/Mines | Build established: Scavenger-Mutant 1046 | -9/Mines | Discovered new exit (range 6) 1062 | -9/Mines | Discovered new exit (range 10) 1107 | -9/Mines | Entered Materials 1107 | -8/Materials | Evolved 2 slots: Utility x2 3078 | -8/Materials | Discovered new exit (range 16) 3084 | -8/Materials | Entered Factory 3084 | -7/Factory | Evolved 2 slots: Utility x1, Weapon x1 3373 | -7/Factory | Build established: Scavenger-Gunner 4754 | -7/Factory | Identified exit to Factory 5322 | -7/Factory | Fabricated Flight Unit (x2) 5369 | -7/Factory | Entered another Factory area 5369 | -6/Factory | Evolved 2 slots: Utility x2 5626 | -6/Factory | Build established: Mutant 6165 | -6/Factory | Discovered new exit (range 11) 6583 | -6/Factory | Cargo convoy interrupted 7144 | -6/Factory | Spotted B-75 Beast 7197 | -6/Factory | Lost 3 parts (3n) 7270 | -6/Factory | Core integrity fell below 50% 7289 | -6/Factory | Lost 8 parts (3n3u2w) 7469 | -6/Factory | Search patrols dispatched 7746 | -6/Factory | Discovered new exit (range 8) 7748 | -6/Factory | Identified exit to Lower Caves 7749 | -6/Factory | Entered Lower Caves 7811 | -6/Lower Caves | Attracted the attention of an 0b10 outpost 7821 | -6/Lower Caves | Spotted B-75 Beast 7822 | -6/Lower Caves | Core integrity fell below 20% 7853 | -6/Lower Caves | Destroyed by Y-64 Sentinel with KE Penetrator Last Messages --------------- 9T. 07734_ Acquired Airjet. 07735_ Imp. Sensor Array destroyed. 07736_ Acquired Arc Projector. 07739_ Airjet severed. 07743_ Arc Projector severed. 07745_ Knocked back. 07746_ EXIT=FOUND 07748_ EXIT=IDENTIFIED: LOWER CAVES 07749_ C-17 Slicer knocked back. 07749_ Slammed into H-61 Shepherd. LOCATION=LOWER CAVES GOAL=ESCAPE 07810_ Penetrated by Slug. 07810_ G-50 Soldier springs to life. 07811_ Y-64 Sentinel: "DETECTED UNIDENTIFIED DERELICT." 07815_ Y-64 Sentinel: "REQUESTING BACKUP." 07841_ Critical hit (Burn: +37). 07853_ Penetrated by Slug. Map ----- +----------------------------------------------------+ | | | ?????????????????????????????????????????????????? | | ?????????????????????????????????????????????????? | | ?????????????????????????????????????????????????? | | ?????????????????????????????????????????????????? | | ?????????????????????????????????????????????????? | | ?????????????????????????????????????????????????? | | ?????????????????????????????????????????????????? | | ?????????????????????????????????????????????????? | | ?????????????????????????????????????????????????? | | ?????????????????????????????????????????????????? | | ?????????????????????????????????????????????????? | | ?????????????????????????????????????????????????? | | ?????????????????????????????????????????????????? | | ?????????????????????????????????????????????????? | | ??????????????????????????????????????############ | | ?????????????????????????????????###?## | | ?????????????????######?????##### #?# | | ????????????????## ##???## #?# | | ????????????????# ##?## ##?# ### # | | ?????????????????# ### #??## #??##### | | ???????????####???# ######## ####?## | | ???????##### ##??# ### ### | | ??????## #### ###?# ### ### | | ??????# #?????#" # | | ??????# @g##????#" # ## | | ??????## ## ##?? #" # ### | | ???????######### gY#?? #" ## #?# | | ???????????????# #### g #?# #" # #?# ## | | ???????????????# ##?## ## #""""""# #?# #? | | ???????????????####??# ######## #?# #? | | ?????????????????????# #?## #? | | ????????????????????## ###### #??## #? | | ????????????????????# #???# #???###? | | ????????????????????## ##???# #??????? | | ?????????????????????## #????# ##??????? | | ??????????????????????## ##????# #???????? | | ???????????????????????## ##????# ##???????? | | ????????????????????????# BB###?## ##???????? | | ????????????????????????## ### #????#### | | ?????????????????????????### ###### | | ???????????????????????????### ### | | ?????????????????????????????# ## ### | | ????????????????????????###### ### ## | | ????????????????????????# % #?## ## | | ????????????????????????# #??###### | | ????????????????????????# ######???????# # | | ????????????????????????# ?????????????## ## | | ??????????????????????? " ???????????????#######?? | | ?????????????????????? ????????????????????????? | +----------------------------------------------------+ Best States ------------- Heat Dissipation 37 Energy Generation 15 Energy Capacity 265 Matter Stores 300 Matter Capacity 300 Sight Range 16 Robot Scan Range 15 Terrain Scan Range 20 Terrain Scan Density 210 Jamming Range 12 Evasion (%) 63 Targeting Accuracy 14 Salvage Targeting 2 Item Schematics ----------------- Wheel | -9/Materials | Scanalyzed Aluminum Leg | -9/Materials | Scanalyzed Assault Rifle | -9/Materials | Scanalyzed Imp. Aluminum Leg | -9/Materials | Scanalyzed Targeting Computer | -8/Materials | Scanalyzed Lgt. Assault Rifle | -8/Materials | Scanalyzed Flight Unit | -8/Materials | Scanalyzed Autogun | -7/Factory | Scanalyzed Xenon Bombardment Thruster | -7/Factory | Scanalyzed Robot Schematics ------------------ None Fabricated ------------ Flight Unit | x2 | -7/Factory Repaired ---------- Nothing Studied --------- Wheel | -9/Materials | Hacked Assault Rifle | -9/Materials | Hacked Aluminum Leg | -9/Materials | Hacked Lgt. Assault Rifle | -9/Materials | Hacked Mining Laser | -9/Materials | Hacked Flight Unit | -8/Materials | Hacked Alien Tech Used ----------------- None Achievements -------------- Total Silence Challenges ------------ None Game ------ Seed PlasmaMakeshiftCannon Manual? 0 Play Time 01:01:34 Cumulative 51.3 hours Start 2026.07.27 @ 14:29:00 End 2026.07.27 @ 15:32:17 Sessions 1 Manual Loads 0 Difficulty Rogue Special Mode None Game No. 87 Rogue 87 Adventurer 0 Explorer 0 Win Type - Total 0 Types 0/0/0/0/0/0/0/0/0/0 Lore% 28 Gallery% 33 Achievement% 27 Wizard Run 0 Options --------- Layout 1 ASCII 0 Keyboard 0 Movement Numpad Keybinds 0 Fullscreen 2 Font 24/Smallcaps Map View 50x35 Zoom Use 0% Tactical HUD 1 Map Filters NONE Filters NONE Steam 1 RUN: dc4c0ed1-f5e6-4988-9887-4d9786c4fce8